bitfinex/quotes_ETHUSD_20250803
["timestamp","ask_amount","ask_price","bid_price","bid_amount"]
[1754193083423,37.89287538,3456.2,3456.1,0.002]
[1754193083666,38.0419112,3456.2,3456.1,0.002]
[1754193085741,37.77163582,3456.2,3456.1,0.002]
[1754193086051,38.8020795,3456.2,3456.1,0.002]
[1754193087453,4.4140795,3456.2,3456.1,0.002]
[1754193087828,8.8020795,3456.2,3456.1,0.002]
[1754193088728,15.9400795,3456.2,3456.1,0.002]
[1754193090066,15.4859795,3456.2,3456.1,0.002]
[1754193090470,8.71844368,3456.2,3456.1,0.4855]
[1754193090670,12.55644368,3456.2,3456.1,0.9544]
[1754193090877,13.10644368,3456.2,3456.1,0.9544]
[1754193091245,13.10644368,3456.2,3456.1,0.4855]
[1754193094364,21.01104368,3456.2,3456.1,0.002]
[1754193094545,51.01104368,3456.2,3456.1,0.002]
[1754193097335,50.74124451,3456.2,3456.1,0.002]
[1754193097537,51.01227045,3456.2,3456.1,0.002]
[1754193098334,0.27102594,3456.2,3456.1,0.9544]
[1754193098539,4.388,3456.2,3456.1,0.9544]
[1754193098868,4.67302594,3456.2,3456.1,0.9544]
[1754193099040,5.22302594,3456.2,3456.1,0.9544]
[1754193099436,4.67302594,3456.2,3456.1,0.9544]
[1754193099931,4.402,3456.2,3456.1,0.9544]
[1754193100128,4.952,3456.2,3456.1,0.9544]
[1754193106371,4.948,3456.2,3456.1,0.9544]
[1754193109879,4.948,3456.2,3456.1,0.4855]
[1754193110092,4.948,3456.2,3456.1,0.9536]
[1754193114502,4.948,3456.2,3456.1,0.002]
[1754193115006,5.4137,3456.2,3456.1,0.002]
[1754193115370,4.948,3456.2,3456.1,0.002]
[1754193117906,5.4137,3456.2,3456.1,0.002]
[1754193118116,6.44116,3456.2,3456.1,0.002]
[1754193120704,5.53356,3456.2,3456.1,0.002]
[1754193120915,6.44116,3456.2,3456.1,0.002]
[1754193121589,13.85018826,3456.2,3456.1,0.002]
[1754193123920,13.57916,3456.2,3456.1,0.002]
[1754193124919,20.53716,3456.2,3456.1,0.002]
[1754193125216,15.23156,3456.2,3456.1,0.002]
[1754193125402,20.53316,3456.2,3456.1,0.002]
[1754193130175,19.62456,3456.2,3456.1,0.002]
[1754193130909,20.09026,3456.2,3456.1,0.002]
[1754193131097,20.53216,3456.2,3456.1,0.002]
[1754193136222,15.23156,3456.2,3456.1,0.002]
[1754193136520,18.487,3456.2,3456.1,0.9358]
[1754193136816,19.037,3456.2,3456.1,1.519547]
[1754193137004,18.487,3456.2,3456.1,1.519547]
[1754193137419,19.037,3456.2,3456.1,1.519547]
[1754193137800,19.038,3456.2,3456.1,1.519547]
[1754193141654,19.038,3456.2,3456.1,0.585747]
[1754193141836,19.038,3456.2,3456.1,1.074847]
[1754193142145,19.038,3456.2,3456.1,1.533747]
[1754193142850,14.646,3456.2,3456.1,1.533747]
[1754193143002,19.037,3456.2,3456.1,1.533747]
[1754193151222,14.646,3456.2,3456.1,1.074847]
[1754193151559,4.388,3456.2,3456.1,4.6871217]
[1754193152422,0.001,3456.5,3456.1,4.6871217]
[1754193152623,0.001,3456.5,3456.4,13.07746877]
[1754193152835,4.392,3456.5,3456.4,13.07746877]
[1754193153044,4.392,3456.5,3456.4,14.02546877]
[1754193153213,4.392,3456.5,3456.4,15.52382067]
[1754193155411,0.001,3456.5,3456.4,15.52382067]
[1754193158454,0.001,3456.5,3456.4,16.39366967]
[1754193165577,0.001,3456.5,3456.4,16.39566967]
[1754193170128,0.001,3456.5,3456.4,15.93676967]
[1754193170830,0.001,3456.5,3456.4,16.39976967]
[1754193172594,0.001,3456.5,3456.4,15.93676967]
[1754193173620,0.001,3456.5,3456.4,15.44766967]
[1754193174642,0.001,3456.5,3456.4,15.90146967]
[1754193180665,0.001,3456.5,3456.4,15.44766967]
[1754193181897,0.001,3456.5,3456.4,16.36446967]
[1754193182812,0.001,3456.5,3456.4,20.75046967]
[1754193187702,0.001,3456.5,3456.4,20.28746967]
[1754193187895,0.001,3456.5,3456.4,19.83366967]
[1754193190499,0.001,3456.5,3456.4,15.44766967]
[1754193190800,0.4583,3456.5,3456.4,15.44766967]
[1754193190999,0.001,3456.5,3456.4,15.44766967]
[1754193193084,0.001,3456.5,3456.4,15.90146967]
[1754193193401,0.001,3456.5,3456.4,15.44766967]
[1754193193582,0.001,3456.5,3456.4,15.90146967]
[1754193193786,0.001,3456.5,3456.4,15.44766967]
[1754193196520,0.9273,3456.5,3456.4,15.44766967]
[1754193200013,0.9273,3456.5,3456.4,3.871849]
[1754193222048,1.4773,3456.5,3456.4,3.871849]
[1754193222350,1.4773,3456.5,3456.4,3.002]
[1754193225557,5.8633,3456.5,3456.4,3.002]
[1754193227362,5.8633,3456.5,3456.4,0.002]
[1754193227562,6.72093106,3456.5,3456.4,0.002]
[1754193237474,6.72036717,3456.5,3456.4,0.002]
[1754193238354,13.85836717,3456.5,3456.4,0.002]
[1754193240280,13.83556717,3456.5,3456.4,0.002]
[1754193241187,9.00306717,3456.5,3456.4,0.002]
[1754193241389,11.79673717,3456.5,3456.4,0.9465]
[1754193241705,11.526,3456.5,3456.4,0.9465]
[1754193241859,12.076,3456.5,3456.4,0.9465]
[1754193242062,11.526,3456.5,3456.4,0.9465]
[1754193242388,12.076,3456.5,3456.4,0.9465]
[1754193242559,13.7406,3456.5,3456.4,0.002]
[1754193242762,14.1871,3456.5,3456.4,0.002]
[1754193243193,13.7406,3456.5,3456.4,0.002]
[1754193243392,13.2836,3456.5,3456.4,0.002]
[1754193244099,12.076,3456.5,3456.4,0.9465]
[1754193246299,12.076,3456.5,3456.4,0.4992]
[1754193247481,12.076,3456.5,3456.4,0.002]
[1754193247682,12.533,3456.5,3456.4,0.002]
[1754193248302,12.076,3456.5,3456.4,0.002]
[1754193248798,13.6205735,3456.5,3456.4,0.002]
[1754193249190,14.0670735,3456.5,3456.4,0.002]
[1754193250469,13.1635735,3456.5,3456.4,0.002]
[1754193250668,14.0670735,3456.5,3456.4,0.002]
[1754193255805,13.1635735,3456.5,3456.4,0.002]
[1754193257713,14.0670735,3456.5,3456.4,0.002]
[1754193259518,13.89200368,3456.5,3456.4,0.002]
[1754193260416,14.35780368,3456.5,3456.4,0.002]
[1754193261106,13.89200368,3456.5,3456.4,0.002]
[1754193262823,14.35780368,3456.5,3456.4,0.002]
[1754193266000,7.21980368,3456.5,3456.4,0.002]
[1754193272443,7.21868977,3456.5,3456.4,0.002]
[1754193273142,4.65931627,3456.5,3456.4,0.002]
[1754193273466,5.20931627,3456.5,3456.4,0.9036]
[1754193273752,4.6591229,3456.5,3456.4,0.4547]
[1754193273903,4.6591229,3456.5,3456.4,0.9036]
[1754193274540,4.93788609,3456.5,3456.4,0.9036]
[1754193274697,4.93788609,3456.5,3456.4,0.002]
[1754193274899,5.43568609,3456.5,3456.4,0.002]
[1754193275099,7.19105097,3456.5,3456.4,0.002]
[1754193281058,14.32905097,3456.5,3456.4,0.002]
[1754193281664,14.60029797,3456.5,3456.4,0.002]
[1754193282755,16.34129797,3456.5,3456.4,0.002]
[1754193285948,16.34129797,3456.5,3456.4,0.002]
[1754193290175,16.34139041,3456.5,3456.4,0.002]
[1754193290669,15.37779041,3456.5,3456.4,0.002]
[1754193290848,11.79722553,3456.5,3456.4,0.952]
[1754193291052,5.20922553,3456.5,3456.4,0.952]
[1754193292941,5.20922553,3456.5,3456.4,0.496]
[1754193293270,6.16048927,3456.5,3456.4,0.002]
[1754193293474,6.12432553,3456.5,3456.4,0.002]
[1754193293685,7.60665808,3456.5,3456.4,0.002]
[1754193294861,9.34765808,3456.5,3456.4,0.002]
[1754193295040,39.34765808,3456.5,3456.4,0.002]
[1754193295842,12.34765808,3456.5,3456.4,0.002]
[1754193296042,42.34765808,3456.5,3456.4,0.002]
[1754193298686,42.34765808,3456.5,3456.1,0.002]
[1754193298687,32.291,3456.2,3456.1,0.002]
[1754193298844,36.94833944,3456.2,3456.1,0.002]
[1754193299042,37.86343944,3456.2,3456.1,0.002]
[1754193300202,36.94833944,3456.2,3456.1,0.002]
[1754193300658,9.94833944,3456.2,3456.1,0.002]
[1754193300985,11.46984135,3456.2,3456.1,0.002]
[1754193302275,7.08384135,3456.2,3456.1,0.496]
[1754193302478,9.94833944,3456.2,3456.1,0.496]
[1754193302887,8.20733944,3456.2,3456.1,0.496]
[1754193304292,8.20733944,3456.2,3456.1,0.002]
[1754193304486,8.20718971,3456.2,3456.1,0.002]
[1754193305265,8.20718971,3456.2,3456.1,0.952]
[1754193305588,9.35034194,3456.2,3456.1,0.952]
[1754193305788,9.35034194,3456.2,3456.1,0.002]
[1754193306470,10.26544194,3456.2,3456.1,0.002]
[1754193307089,12.00644194,3456.2,3456.1,0.002]
[1754193307402,42.00644194,3456.2,3456.1,0.002]
[1754193307576,41.73525223,3456.2,3456.1,0.002]
[1754193313716,30.55,3455.8,3455.7,0.002]
[1754193313917,42.071,3455.8,3455.7,0.002]
[1754193314714,49.031,3455.8,3455.7,0.002]
[1754193320727,49.30219271,3455.8,3455.7,0.002]
[1754193323023,51.04319271,3455.8,3455.7,0.002]
[1754193323214,53.91143978,3455.8,3455.7,0.002]
[1754193329463,54.39313978,3455.8,3455.7,0.002]
[1754193330960,53.91143978,3455.8,3455.7,0.002]
[1754193331731,23.91143978,3455.8,3455.7,0.002]
[1754193332058,53.91143978,3455.8,3455.7,0.002]
[1754193333464,53.91194014,3455.8,3455.7,0.002]
[1754193333667,53.91193955,3455.8,3455.7,0.002]
[1754193334249,54.39363955,3455.8,3455.7,0.002]
[1754193336039,54.12194707,3455.8,3455.7,0.002]
[1754193336657,53.64024707,3455.8,3455.7,0.002]
[1754193337958,14.094,3455.8,3455.7,0.4445]
[1754193338277,18.481,3455.8,3455.7,0.002]
[1754193338490,51.1721,3455.8,3455.7,0.002]
[1754193338769,54.59034707,3455.8,3455.7,0.002]
[1754193339129,57.59034707,3455.8,3455.7,0.002]
[1754193340942,57.80345307,3455.8,3455.7,0.002]
[1754193342162,57.59034707,3455.8,3455.7,0.002]
[1754193343373,27.59034707,3455.8,3455.7,0.002]
[1754193343842,27.59034707,3455.8,3455.6,0.002]
[1754193343843,42.423,3455.7,3455.6,0.002]
[1754193344174,50.51923471,3455.7,3455.6,0.002]
[1754193345760,49.01913471,3455.7,3455.6,0.002]
[1754193345962,49.01913471,3455.7,3455.6,0.4669]
[1754193346280,49.57013471,3455.7,3455.6,0.4669]
[1754193347268,42.07,3455.7,3455.6,0.4669]
[1754193347467,37.682,3455.7,3455.6,0.9094]
[1754193347675,7.132,3455.7,3455.6,0.9094]
[1754193347879,11.521,3455.7,3455.6,0.9094]
[1754193348352,12.071,3455.7,3455.6,0.9094]
[1754193349034,12.071,3455.7,3455.6,0.002]
[1754193349248,12.071,3455.7,3455.6,0.9094]
[1754193349861,12.36692553,3455.7,3455.6,0.002]
[1754193350062,43.28542553,3455.7,3455.6,0.002]
[1754193350266,42.84032553,3455.7,3455.6,0.002]
[1754193350463,42.36692553,3455.7,3455.6,0.002]
[1754193350674,43.28542553,3455.7,3455.6,0.002]
[1754193351053,42.36692553,3455.7,3455.6,0.002]
[1754193351381,45.84032553,3455.7,3455.6,0.002]
[1754193351975,46.28542553,3455.7,3455.6,0.002]
[1754193352142,48.02642553,3455.7,3455.6,0.002]
[1754193353162,35.291,3455.4,3455.3,0.002]
[1754193353384,39.683,3455.4,3455.3,0.002]
[1754193353587,47.7315,3455.4,3455.3,0.002]
[1754193355082,46.813,3455.4,3455.3,0.002]
[1754193355379,47.7315,3455.4,3455.3,0.002]
[1754193355590,50.59974707,3455.4,3455.3,0.002]
[1754193356918,20.59974707,3455.4,3455.3,0.002]
[1754193357074,50.59974707,3455.4,3455.3,0.002]
[1754193359465,50.15464707,3455.4,3455.3,0.002]
[1754193359661,50.59974707,3455.4,3455.3,0.002]
[1754193360395,50.15464707,3455.4,3455.3,0.002]
[1754193360597,49.68024707,3455.4,3455.3,0.002]
[1754193360808,46.68024707,3455.4,3455.3,0.494]
[1754193361219,49.68024707,3455.4,3455.3,0.494]
[1754193361586,49.68024707,3455.4,3455.3,0.002]
[1754193362287,50.15364707,3455.4,3455.3,0.002]
[1754193362910,50.59874707,3455.4,3455.3,0.002]
[1754193363348,50.15364707,3455.4,3455.3,0.002]
[1754193363732,16.68024707,3455.4,3455.3,0.9323]
[1754193363940,13.813,3455.4,3455.3,0.9323]
[1754193364950,13.813,3455.4,3455.3,0.494]
[1754193365309,13.813,3455.4,3455.3,0.002]
[1754193366422,14.2864,3455.4,3455.3,0.002]
[1754193366621,17.7315,3455.4,3455.3,0.002]
[1754193366824,19.53434255,3455.4,3455.3,0.002]
[1754193367860,49.53434255,3455.4,3455.3,0.002]
[1754193370121,48.61584255,3455.4,3455.3,0.002]
[1754193370935,44.22384255,3455.4,3455.3,0.002]
[1754193371259,18.61484255,3455.4,3455.3,0.002]
[1754193371447,48.61484255,3455.4,3455.3,0.002]
[1754193371648,49.08824255,3455.4,3455.3,0.002]
[1754193372362,49.53334255,3455.4,3455.3,0.002]
[1754193383074,19.53334255,3455.4,3455.3,0.002]
[1754193383258,49.53334255,3455.4,3455.3,0.002]
[1754193384991,19.53334255,3455.4,3455.3,0.002]
[1754193385293,49.53334255,3455.4,3455.3,0.002]
[1754193386017,5.291,3455.3,3455.2,0.002]
[1754193386171,50.64892337,3455.3,3455.2,0.002]
[1754193386505,50.61274707,3455.3,3455.2,0.002]
[1754193387263,45.28924707,3455.3,3455.2,0.002]
[1754193387588,49.67724707,3455.3,3455.2,0.002]
[1754193387762,50.61274707,3455.3,3455.2,0.002]
[1754193389260,20.61274707,3455.3,3455.2,0.002]
[1754193389495,50.61274707,3455.3,3455.2,0.002]
[1754193391105,2.291,3455.0,3454.9,0.002]
[1754193391299,46.71642652,3455.0,3454.9,0.002]
[1754193391602,47.61574707,3455.0,3454.9,0.002]
[1754193392466,54.57874707,3455.0,3454.9,0.002]
[1754193392868,54.7227982,3455.0,3454.9,0.002]
[1754193395506,57.7227982,3455.0,3454.8,0.002]
[1754193395823,42.47872952,3454.9,3454.8,0.002]
[1754193395988,42.44254903,3454.9,3454.8,0.002]
[1754193396306,0.55,3454.3,3454.2,0.4705]
[1754193396516,42.065,3454.3,3454.2,0.4705]
[1754193396718,43.86784255,3454.3,3454.2,0.9425]
[1754193397525,43.86784255,3454.3,3453.8,0.472]
[1754193397526,13.86784255,3454.3,3453.8,0.472]
[1754193397726,30.55,3454.1,3454.0,0.4705]
[1754193397884,34.939,3454.1,3453.3,0.116115]
[1754193398089,0.55,3453.9,3453.3,0.116115]
[1754193398324,0.55,3453.7,3452.7,3.002]
[1754193398525,0.55,3453.5,3453.2,0.4705]
[1754193398813,0.55,3453.3,3453.2,0.9425]
[1754193399018,0.55,3453.3,3453.1,0.11812]
[1754193399224,7.126,3454.0,3453.1,0.11812]
[1754193399225,4.939,3453.2,3453.1,0.11812]
[1754193399597,4.939,3453.2,3453.1,0.58862]
[1754193399913,4.939,3453.2,3453.1,1.06062]
[1754193400688,4.939,3453.2,3453.1,2.17462888]
[1754193403918,0.55,3453.2,3453.1,2.17462888]
[1754193404122,4.939,3453.2,3453.1,2.17462888]
[1754193404324,0.55,3453.2,3453.1,2.17462888]
[1754193404523,4.389,3453.2,3453.1,5.17462888]
[1754193405733,4.939,3453.2,3453.1,5.17462888]
[1754193406342,4.939,3453.2,3453.1,2.17462888]
[1754193406504,4.939,3453.2,3453.1,1.06062]
[1754193411405,4.939,3453.2,3453.1,0.58862]
[1754193412224,4.939,3453.2,3453.1,0.11812]
[1754193412412,4.939,3453.2,3453.1,0.60832]
[1754193413162,4.939,3453.2,3453.1,1.04102]
[1754193416965,4.939,3453.2,3453.1,0.60832]
[1754193420140,0.55,3453.2,3453.1,0.60832]
[1754193420485,4.939,3453.2,3453.1,1.04102]
[1754193420673,4.939,3453.2,3453.1,2.15306888]
[1754193421469,4.939,3453.2,3453.1,1.04102]
[1754193421631,4.939,3453.2,3453.1,0.60832]
[1754193422477,4.939,3453.2,3453.1,0.11812]
[1754193422943,4.939,3453.2,3453.1,0.60832]
[1754193425526,0.55,3453.2,3453.1,0.60832]
[1754193425867,4.939,3453.2,3453.1,2.10979888]
[1754193426233,0.55,3453.2,3453.1,2.10979888]
[1754193426435,4.939,3453.2,3453.1,2.10979888]
[1754193427085,4.389,3453.2,3453.1,2.10979888]
[1754193427578,4.389,3453.2,3453.1,2.38119804]
[1754193428440,4.389,3453.2,3453.1,2.10979888]
[1754193432735,3.389,3453.2,3453.1,2.10979888]
[1754193433880,3.389,3453.2,3453.1,1.18689888]
[1754193434670,3.389,3453.2,3453.1,1.67709888]
[1754193436070,3.389,3453.2,3453.1,1.18689888]
[1754193436273,3.8791,3453.2,3453.1,1.18689888]
[1754193436477,4.8761,3453.2,3453.1,1.18689888]
[1754193438366,3.939,3453.2,3453.1,0.11812]
[1754193438772,3.4291,3453.2,3453.1,0.11812]
[1754193439769,3.2853,3453.2,3453.1,0.11812]
[1754193440766,2.7952,3453.2,3453.1,0.11812]
[1754193440974,2.7952,3453.2,3453.1,1.48689888]
[1754193441361,3.7145,3453.2,3453.1,1.48689888]
[1754193442274,1.4693,3453.2,3453.1,1.48689888]
[1754193442438,4.388,3453.2,3453.1,2.41109888]
[1754193444643,1.0084,3453.7,3453.1,2.41109888]
[1754193444843,0.55,3453.5,3453.2,10.55526877]
[1754193445066,4.388,3453.4,3453.3,0.4778]
[1754193445373,0.55,3453.4,3453.3,0.4778]
[1754193445586,4.938,3453.4,3453.3,0.4778]
[1754193445879,4.938,3453.4,3453.3,1.66524458]
[1754193446183,4.938,3453.4,3453.3,2.53601558]
[1754193446545,4.938,3453.4,3453.3,2.05821558]
[1754193447480,5.8573,3453.4,3453.3,2.05821558]
[1754193447775,5.8573,3453.4,3453.3,0.870771]
[1754193449580,4.8573,3453.4,3453.3,0.870771]
[1754193453977,4.388,3453.4,3453.3,10.94823977]
[1754193454149,4.388,3453.4,3453.3,12.39104375]
[1754193455379,5.3073,3453.4,3453.3,12.39104375]
[1754193455752,5.3073,3453.4,3453.3,2.31357498]
[1754193455978,5.3073,3453.4,3453.3,0.870771]
[1754193457458,5.8573,3453.4,3453.3,0.870771]
[1754193462976,1.4693,3453.4,3453.3,0.870771]
[1754193463206,5.8573,3453.4,3453.3,0.870771]
[1754193463694,5.3964,3453.4,3453.3,0.870771]
[1754193464305,5.8573,3453.4,3453.3,0.870771]
[1754193466916,5.8573,3453.4,3453.3,0.872771]
[1754193467216,5.8583,3453.4,3453.3,0.872771]
[1754193470609,5.8583,3453.4,3453.3,1.14425298]
[1754193471701,5.8583,3453.4,3453.3,0.872771]
[1754193474714,5.8583,3453.4,3453.3,1.14432502]
[1754193476579,5.8583,3453.4,3453.3,1.14428379]
[1754193479609,6.44413,3453.4,3453.3,1.14428379]
[1754193479773,5.8583,3453.4,3453.3,1.14428379]
[1754193480899,5.8583,3453.4,3453.3,0.872771]
[1754193481312,4.939,3453.4,3453.3,0.872771]
[1754193481680,5.8597,3453.4,3453.3,0.872771]
[1754193483217,4.939,3453.4,3453.3,0.872771]
[1754193483420,5.8597,3453.4,3453.3,0.872771]
[1754193484014,4.939,3453.4,3453.3,0.872771]
[1754193484195,4.939,3453.4,3453.3,1.361371]
[1754193484695,4.939,3453.4,3453.3,0.872771]
[1754193485210,5.8597,3453.4,3453.3,0.872771]
[1754193485922,5.4179,3453.4,3453.3,0.872771]
[1754193486497,5.8597,3453.4,3453.3,0.002]
[1754193489104,6.1816538,3453.4,3453.3,0.002]
[1754193498686,6.1816538,3453.4,3453.3,0.27325866]
[1754193506909,6.1816538,3453.4,3453.3,0.27328451]
[1754193509791,6.45339922,3453.4,3453.3,0.002]
[1754193511031,1.74344542,3453.4,3453.3,0.002]
[1754193511215,5.68864542,3453.4,3453.3,0.002]
[1754193512730,6.15124542,3453.4,3453.3,0.002]
[1754193512895,0.27274542,3453.4,3453.3,0.002]
[1754193513222,4.938,3453.4,3453.3,0.9453]
[1754193513798,4.938,3453.4,3453.3,1.816172]
[1754193514931,4.938,3453.4,3453.3,0.872872]
[1754193515732,4.938,3453.4,3453.3,1.351572]
[1754193516396,4.938,3453.4,3453.3,0.872872]
[1754193517407,4.938,3453.4,3453.3,1.351572]
[1754193520848,0.551,3453.4,3453.3,1.351572]
[1754193521073,4.938,3453.4,3453.3,1.351572]
[1754193523444,0.551,3453.4,3453.3,1.9979892]
[1754193523739,4.938,3453.4,3453.3,1.9979892]
[1754193524856,4.938,3453.4,3453.3,1.5333892]
[1754193525013,4.938,3453.4,3453.3,1.351572]
[1754193525346,4.938,3453.4,3453.3,0.872872]
[1754193531616,5.8996,3453.4,3453.3,0.872872]
[1754193531814,5.8996,3453.4,3453.3,0.002]
[1754193534472,5.4354,3453.4,3453.3,0.002]
[1754193534853,4.938,3453.4,3453.3,0.002]
[1754193536452,4.938,3453.4,3453.3,1.372538]
[1754193537473,4.938,3453.4,3453.3,0.872838]
[1754193540273,0.001,3453.4,3453.3,11.63170057]
[1754193540464,4.387,3453.4,3453.3,12.07410057]
[1754193542040,4.937,3453.4,3453.3,0.872838]
[1754193542445,4.387,3453.4,3453.3,1.814938]
[1754193542765,4.387,3453.4,3453.3,1.372538]
[1754193543590,4.387,3453.4,3453.3,0.872838]
[1754193543750,4.387,3453.4,3453.3,1.814938]
[1754193543958,4.387,3453.4,3453.3,3.00437868]
[1754193545584,4.387,3453.4,3453.3,2.56197868]
[1754193546159,4.937,3453.4,3453.3,0.872838]
[1754193546355,5.8986,3453.4,3453.3,0.872838]
[1754193548674,5.8986,3453.4,3453.3,0.002]
[1754193550163,13.0246,3453.4,3453.3,0.002]
[1754193552052,12.063,3453.4,3453.3,0.002]
[1754193552256,12.5604,3453.4,3453.3,0.002]
[1754193552671,13.0246,3453.4,3453.3,0.002]
[1754193554957,12.063,3453.4,3453.3,0.002]
[1754193555479,12.5604,3453.4,3453.3,0.002]
[1754193555885,13.0246,3453.4,3453.3,0.002]
[1754193565993,12.5594,3453.4,3453.3,0.002]
[1754193566390,12.062,3453.4,3453.3,0.002]
[1754193566968,12.062,3453.4,3453.3,0.4726]
[1754193567209,12.062,3453.4,3453.3,0.002]
[1754193567509,12.5532,3453.4,3453.3,0.002]
[1754193568184,12.9816,3453.4,3453.3,0.002]
[1754193568603,13.72504633,3453.4,3453.3,0.002]
[1754193571222,12.9816,3453.4,3453.3,0.002]
[1754193571722,13.25334009,3453.4,3453.3,0.002]
[1754193574311,12.9816,3453.4,3453.3,0.002]
[1754193578825,42.9816,3453.4,3453.3,0.002]
[1754193579332,43.25323033,3453.4,3453.3,0.002]
[1754193579534,46.1214774,3453.4,3453.3,0.002]
[1754193581254,49.12144679,3453.4,3453.3,0.002]
[1754193582306,50.86344679,3453.4,3453.3,0.002]
[1754193583342,51.28825919,3453.4,3453.3,0.002]
[1754193583513,50.86344679,3453.4,3453.3,0.002]
[1754193584720,51.24113484,3453.4,3453.3,0.002]
[1754193586703,51.24056901,3453.4,3453.3,0.002]
[1754193588936,21.24056901,3453.4,3453.3,0.002]
[1754193589101,51.24056901,3453.4,3453.3,0.002]
[1754193589303,35.292,3453.2,3453.1,0.002]
[1754193589639,57.5379834,3453.2,3453.1,0.002]
[1754193589802,58.4360834,3453.2,3453.1,0.002]
[1754193590000,58.65140742,3453.2,3453.1,0.002]
[1754193591401,35.292,3453.0,3452.9,0.002]
[1754193591735,39.95762084,3453.0,3452.9,0.002]
[1754193592110,40.85572084,3453.0,3452.9,0.002]
[1754193592314,41.23340889,3453.0,3452.9,0.002]
[1754193593639,11.23340889,3453.0,3452.9,0.002]
[1754193593852,43.05945792,3453.0,3452.9,0.002]
[1754193594200,43.05945792,3453.0,3452.7,0.002]
[1754193594457,45.36946877,3452.8,3452.7,0.002]
[1754193594639,50.03508961,3452.8,3452.7,0.002]
[1754193595014,50.93318961,3452.8,3452.7,0.002]
[1754193595210,56.69763686,3452.8,3452.7,0.002]
[1754193597338,53.80143668,3452.8,3452.7,0.002]
[1754193597859,56.69763686,3452.8,3452.7,0.002]
[1754193598459,35.292,3452.4,3451.7,0.459]
[1754193598637,32.292,3451.6,3451.5,0.4469]
[1754193598815,46.21524707,3451.6,3451.5,0.4469]
[1754193600886,46.3641849,3451.6,3451.5,0.7516]
[1754193601202,43.347,3451.6,3451.5,0.7516]
[1754193602043,41.055,3451.6,3451.5,0.7516]
[1754193602436,41.605,3451.6,3451.5,0.7516]
[1754193603045,43.347,3451.6,3451.5,0.4469]
[1754193603249,43.347,3451.6,3451.5,0.002]
[1754193603556,46.21524707,3451.6,3451.5,0.4469]
[1754193603732,46.21524707,3451.6,3451.5,0.7516]
[1754193605160,46.21524707,3451.6,3451.5,0.4469]
[1754193606273,46.21524707,3451.6,3451.5,0.002]
[1754193607567,46.66894707,3451.6,3451.5,0.002]
[1754193607900,46.93951695,3451.6,3451.5,0.002]
[1754193608063,46.66894707,3451.6,3451.5,0.002]
[1754193608264,46.48582635,3451.6,3451.5,0.002]
[1754193608565,42.09182635,3451.6,3451.5,0.4469]
[1754193608900,46.48582635,3451.6,3451.5,0.7516]
[1754193609488,42.09182635,3451.6,3451.5,0.4469]
[1754193609668,13.06657928,3451.6,3451.5,0.7516]
[1754193610070,6.661,3451.6,3451.5,0.7516]
[1754193610263,11.056,3451.6,3451.5,0.7516]
[1754193610980,11.606,3451.6,3451.5,0.7516]
[1754193611186,11.056,3451.6,3451.5,0.7516]
[1754193611502,11.606,3451.6,3451.5,0.7516]
[1754193613770,45.23359953,3451.6,3451.5,0.002]
[1754193613970,45.67799953,3451.6,3451.5,0.002]
[1754193614385,45.23359953,3451.6,3451.5,0.002]
[1754193614584,45.23367942,3451.6,3451.5,0.002]
[1754193614869,44.77997942,3451.6,3451.5,0.002]
[1754193615101,14.77997942,3451.6,3451.5,0.4469]
[1754193616003,14.78097942,3451.6,3451.5,0.4469]
[1754193616175,13.62037942,3451.6,3451.5,0.7516]
[1754193617006,13.62037942,3451.6,3451.5,0.4469]
[1754193617214,13.62037942,3451.6,3451.5,0.002]
[1754193617714,44.51847942,3451.6,3451.5,0.002]
[1754193621184,40.85747942,3451.6,3451.5,0.002]
[1754193621389,43.72572649,3451.6,3451.5,0.002]
[1754193621921,43.76112649,3451.6,3451.5,0.002]
[1754193622075,42.83262649,3451.6,3451.5,0.002]
[1754193622777,43.31332649,3451.6,3451.5,0.002]
[1754193624318,43.78812649,3451.6,3451.5,0.002]
[1754193624815,50.75712649,3451.6,3451.5,0.002]
[1754193626117,50.75746933,3451.6,3451.5,0.002]
[1754193628586,50.75730485,3451.6,3451.5,0.002]
[1754193629121,20.75730485,3451.6,3451.5,0.002]
[1754193629419,50.75730485,3451.6,3451.5,0.002]
[1754193632005,50.7571248,3451.6,3451.5,0.002]
[1754193634826,0.55,3450.6,3450.3,0.7427]
[1754193635145,2.292,3450.4,3450.3,0.3047]
[1754193635841,2.56320426,3450.4,3450.3,0.7427]
[1754193636140,2.56320426,3450.4,3450.3,0.438]
[1754193636826,2.56320426,3450.4,3450.3,0.7427]
[1754193639031,9.22220426,3450.4,3450.3,0.7427]
[1754193639334,9.22220426,3450.4,3450.3,0.438]
[1754193640636,16.19300413,3450.4,3449.3,10.07746877]
[1754193640843,0.55,3450.2,3449.4,1.75044688]
[1754193641046,0.55,3450.0,3449.5,0.7427]
[1754193641197,0.55,3449.8,3449.4,1.00774688]
[1754193641406,4.948,3449.7,3449.6,0.7427]
[1754193641741,4.948,3449.7,3449.6,1.0048879]
[1754193642234,4.948,3449.7,3449.6,1.7475879]